bitfinex-derivatives/quotes_SOLF0:USTF0_20250221
["timestamp","ask_amount","ask_price","bid_price","bid_amount"]
[1740108305716,15.98013154,174.49,174.42,5.7311]
[1740108306016,5.3582,174.52,174.42,5.7311]
[1740108306205,15.98013154,174.5,174.42,5.7311]
[1740108306404,15.98013154,174.5,174.4,5.7321]
[1740108306609,0.04356889,174.48,174.44,0.03946127]
[1740108307118,5.7307,174.45,174.44,0.03946127]
[1740108310619,5.7307,174.45,174.44,6.127e-05]
[1740108311126,15.98013154,174.47,174.35,7.93414564]
[1740108311312,15.98013154,174.51,174.35,7.93414564]
[1740108311313,15.98013154,174.42,174.35,7.93414564]
[1740108311621,5.7334,174.36,174.35,31.76638454]
[1740108314121,5.7334,174.36,174.34,0.04374081]
[1740108315226,0.03890537,174.37,174.34,0.04374081]
[1740108316416,0.03890537,174.37,174.36,5.7334]
[1740108318227,0.03890537,174.37,174.36,69.85590189]
[1740108318730,5.7314,174.43,174.39,5.7322]
[1740108318920,11.0202,174.48,174.36,80.10263343]
[1740108318921,27.00033154,174.48,174.36,80.10263343]
[1740108319115,19.46033154,174.48,174.36,81.88363343]
[1740108319316,19.46033154,174.48,174.41,5.7316]
[1740108319528,5.7315,174.42,174.36,81.88363343]
[1740108320027,0.0379837,174.41,174.37,0.04103741]
[1740108320327,0.0379837,174.41,174.36,81.88363343]
[1740108320525,0.0379837,174.41,174.38,31.76638454]
[1740108321826,0.0379837,174.41,174.4,5.7321]
[1740108325424,0.0379837,174.41,174.4,11.13565069]
[1740108325626,0.0379837,174.41,174.4,15.00510466]
[1740108326829,0.0379837,174.41,174.4,9.60155397]
[1740108327026,0.0379837,174.41,174.4,15.00167609]
[1740108327629,0.0379837,174.41,174.4,79.09568459]
[1740108328427,5.7298,174.47,174.43,5.731]
[1740108329226,15.98013154,174.51,174.4,64.0940085]
[1740108329430,5.7302,174.46,174.42,5.7312]
[1740108329632,5.7302,174.46,174.44,0.0399863]
[1740108330734,0.04331128,174.47,174.44,0.0399863]
[1740108330934,5.7304,174.45,174.44,0.0399863]
[1740108334534,5.7302,174.46,174.44,0.0399863]
[1740108335330,0.04331128,174.47,174.44,0.0399863]
[1740108335528,5.7301,174.46,174.44,0.0399863]
[1740108336634,0.04331128,174.47,174.44,0.0399863]
[1740108337339,5.7304,174.45,174.44,0.0399863]
[1740108339145,5.77321128,174.47,174.44,0.0399863]
[1740108339339,0.04331128,174.47,174.44,0.0399863]
[1740108340137,5.7303,174.46,174.44,0.0399863]
[1740108344749,0.04331128,174.47,174.44,0.0399863]
[1740108344952,5.77321128,174.47,174.44,0.0399863]
[1740108349447,0.04331128,174.47,174.44,0.0399863]
[1740108349751,0.04331128,174.47,174.44,5.7704863]
[1740108350651,0.04331128,174.47,174.45,5.7304]
[1740108351050,0.04331128,174.47,174.44,0.0399863]
[1740108351249,5.77311128,174.47,174.44,5.7706863]
[1740108351653,0.04331128,174.47,174.44,0.0399863]
[1740108351854,5.77321128,174.47,174.44,0.0399863]
[1740108352954,5.7302,174.46,174.44,0.0399863]
[1740108354255,10.2214322,174.46,174.44,0.0399863]
[1740108354457,5.7311,174.43,174.42,22.75948454]
[1740108354755,10.2214322,174.43,174.41,63.56771126]
[1740108354948,10.2214322,174.43,174.41,35.15941126]
[1740108355355,5.7314,174.42,174.41,16.49461126]
[1740108355553,10.2214322,174.43,174.33,65.89375172]
[1740108355554,10.2214322,174.43,174.33,52.00281952]
[1740108355757,10.2214322,174.39,174.33,52.00281952]
[1740108356454,10.2214322,174.39,174.31,95.04464123]
[1740108356655,10.2214322,174.43,174.31,95.04464123]
[1740108356656,10.2214322,174.35,174.31,95.04464123]
[1740108356855,10.2214322,174.35,174.33,0.03749009]
[1740108358855,0.04008297,174.37,174.35,5.7336]
[1740108359262,0.04008297,174.37,174.33,10.25892229]
[1740108359458,0.04008297,174.37,174.36,5.7334]
[1740108360859,10.2214322,174.44,174.41,5.7316]
[1740108361053,10.2214322,174.46,174.4,10.2214322]
[1740108361761,5.73,174.47,174.42,10.2214322]
[1740108362159,0.04121338,174.46,174.43,0.0393768]
[1740108362351,5.77151338,174.46,174.43,0.0393768]
[1740108362851,10.26264558,174.46,174.43,0.0393768]
[1740108363058,10.2214322,174.44,174.43,0.0393768]
[1740108363856,15.9521322,174.44,174.43,7.68e-05]
[1740108364062,15.9521322,174.44,174.34,10.2214322]
[1740108364063,10.2214322,174.44,174.34,10.2214322]
[1740108364256,7.5,174.5,174.34,10.2214322]
[1740108364257,10.2214322,174.41,174.34,10.2214322]
[1740108364458,10.2214322,174.43,174.37,5.733]
[1740108364659,15.98287979,174.45,174.37,5.733]
[1740108364958,5.7318,174.41,174.36,5.7331]
[1740108365352,0.03668179,174.4,174.37,0.04361451]
[1740108367764,0.03668179,174.4,174.38,5.7327]
[1740108367964,0.03668179,174.4,174.37,0.04361451]
[1740108369561,5.7327,174.38,174.37,0.04361451]
[1740108370061,15.98287979,174.39,174.3,5.7351]
[1740108370261,15.98287979,174.39,174.28,15.98287979]
[1740108370461,7.5,174.41,174.28,15.98287979]
[1740108371062,0.04138622,174.36,174.33,5.77465895]
[1740108371562,0.04138622,174.36,174.33,0.04055895]
[1740108372164,0.04138622,174.36,174.33,5.77485895]
[1740108372664,0.04138622,174.36,174.33,0.04055895]
[1740108374360,5.734,174.35,174.33,0.04055895]
[1740108378270,0.04138622,174.36,174.33,0.04055895]
[1740108378770,5.77478622,174.36,174.33,0.04055895]
[1740108379471,0.04138622,174.36,174.35,5.7337]
[1740108380764,7.5,174.43,174.33,0.04055895]
[1740108380969,5.7315,174.42,174.37,5.7327]
[1740108381268,5.7315,174.42,174.34,15.98287979]
[1740108381569,5.7315,174.42,174.37,5.7328]
[1740108382073,5.7315,174.42,174.38,0.04114563]
[1740108382074,0.04230845,174.41,174.38,0.04114563]
[1740108382267,5.77430845,174.41,174.38,0.04114563]
[1740108383172,0.04230845,174.41,174.38,0.04114563]
[1740108384869,5.77430845,174.41,174.38,0.04114563]
[1740108385668,0.04230845,174.41,174.38,0.04114563]
[1740108385865,5.7322,174.4,174.38,0.04114563]
[1740108387268,0.04230845,174.41,174.38,0.04114563]
[1740108387470,0.04230845,174.41,174.38,10.27102165]
[1740108388166,0.04230845,174.41,174.38,16.00352165]
[1740108388672,0.04230845,174.41,174.39,5.7323]
[1740108389667,0.04230845,174.41,174.38,10.27102165]
[1740108389872,0.04230845,174.41,174.38,16.00372165]
[1740108390071,0.04230845,174.41,174.38,10.27102165]
[1740108391875,0.04230845,174.41,174.4,5.7321]
[1740108393078,0.04230845,174.41,174.38,10.27102165]
[1740108393277,0.04230845,174.41,174.39,5.7324]
[1740108394078,0.04230845,174.41,174.38,0.04114563]
[1740108394377,0.04230845,174.41,174.38,16.00362165]
[1740108395474,5.7306,174.45,174.41,5.7317]
[1740108395677,5.7306,174.45,174.4,10.22987602]
[1740108396176,10.22987602,174.48,174.42,10.22987602]
[1740108396577,0.03677032,174.47,174.43,0.04281438]
[1740108397176,5.7303,174.46,174.43,0.04281438]
[1740108398079,5.7305,174.45,174.43,0.04281438]
[1740108398378,0.03677032,174.47,174.43,0.04281438]
[1740108398876,5.7302,174.46,174.43,0.04281438]
[1740108399475,0.03677032,174.47,174.44,5.7307]
[1740108399675,0.03677032,174.47,174.44,15.96057602]
[1740108402282,0.03677032,174.47,174.44,10.22987602]
[1740108402770,5.76657032,174.47,174.44,10.22987602]
[1740108404481,10.22987602,174.46,174.43,0.04281438]
[1740108404786,15.96057602,174.44,174.43,1.438e-05]
[1740108406086,5.7305,174.45,174.43,1.438e-05]
[1740108406281,10.22987602,174.44,174.43,1.438e-05]
[1740108406984,15.96057602,174.44,174.43,1.438e-05]
[1740108411885,15.96007602,174.46,174.43,1.438e-05]
[1740108412186,10.22987602,174.46,174.43,1.438e-05]
[1740108412786,5.7304,174.45,174.43,1.438e-05]
[1740108415292,10.22987602,174.46,174.43,1.438e-05]
[1740108416492,5.7307,174.44,174.43,1.438e-05]
[1740108418887,15.96057602,174.44,174.43,1.438e-05]
[1740108423395,10.22987602,174.44,174.43,1.438e-05]
[1740108423690,0.03677032,174.47,174.43,1.438e-05]
[1740108423691,10.22987602,174.46,174.43,1.438e-05]
[1740108424691,7.53677032,174.47,174.43,1.438e-05]
[1740108425194,5.76657032,174.47,174.43,1.438e-05]
[1740108428100,0.03677032,174.47,174.43,1.438e-05]
[1740108428894,0.03677032,174.47,174.44,10.22987602]
[1740108429492,0.03677032,174.47,174.45,5.7302]
[1740108429692,10.22987602,174.52,174.46,10.22987602]
[1740108429892,10.22987602,174.5,174.45,10.22987602]
[1740108430192,5.7296,174.48,174.43,17.65087602]
[1740108430392,10.22987602,174.5,174.43,11.92007602]
[1740108430599,10.22987602,174.52,174.45,10.22987602]
[1740108430797,15.95827602,174.52,174.47,5.7297]
[1740108431098,15.95827602,174.52,174.47,5.7712292]
[1740108431099,0.03928529,174.5,174.47,5.7712292]
[1740108431899,0.03928529,174.5,174.47,0.0415292]
[1740108432905,0.03928529,174.5,174.47,5.7712292]
[1740108433097,0.03928529,174.5,174.47,0.0415292]
[1740108434101,5.76808529,174.5,174.47,0.0415292]
[1740108437400,0.03928529,174.5,174.47,10.27140522]
[1740108439103,0.03928529,174.5,174.48,5.7294]
[1740108439303,0.03928529,174.5,174.49,10.22987602]
[1740108440301,0.03928529,174.5,174.48,3.7199]
[1740108445009,0.03928529,174.5,174.48,9.4493]
[1740108447606,0.03928529,174.5,174.48,3.7199]
[1740108447806,0.56584964,174.55,174.49,10.22987602]
[1740108448008,0.56584964,174.55,174.52,10.22987602]
[1740108448713,0.56584964,174.55,174.52,15.95787602]
[1740108448902,0.60847038,174.55,174.52,16.00027023]
[1740108449106,0.60847038,174.55,174.52,10.27227023]
[1740108450207,6.33567038,174.55,174.52,10.27227023]
[1740108451412,0.60847038,174.55,174.52,10.27227023]
[1740108451609,5.7275,174.54,174.52,10.27227023]
[1740108452608,5.7278,174.53,174.52,0.04239421]
[1740108453417,5.7276,174.54,174.52,0.04239421]
[1740108454314,6.33567038,174.55,174.52,0.04239421]
[1740108454615,0.60847038,174.55,174.52,0.04239421]
[1740108454818,0.60847038,174.55,174.52,5.77039421]
[1740108455316,0.60847038,174.55,174.52,0.04239421]
[1740108456421,0.60847038,174.55,174.52,5.77039421]
[1740108457115,0.60847038,174.55,174.52,10.27227023]
[1740108457818,0.60847038,174.55,174.52,16.00027023]
[1740108458315,0.04262074,174.55,174.52,16.00027023]
[1740108458511,0.04262074,174.55,174.52,10.27227023]
[1740108459718,0.04262074,174.55,174.52,16.00027023]
[1740108460318,0.04262074,174.55,174.52,10.27227023]
[1740108460513,10.22987602,174.61,174.54,10.22987602]
[1740108461020,5.7261,174.59,174.54,15.95717602]
[1740108461815,5.7261,174.59,174.55,0.03925975]
[1740108461816,0.02491557,174.58,174.55,0.03925975]
[1740108462616,5.7268,174.56,174.55,0.03925975]
[1740108463620,5.7268,174.56,174.55,5.975e-05]
[1740108463819,10.22987602,174.57,174.48,3.7199]
[1740108464015,5.7287,174.51,174.48,3.7199]
[1740108464216,10.22987602,174.53,174.48,3.7199]
[1740108464516,15.95797602,174.53,174.48,3.7199]
[1740108464922,15.95797602,174.53,174.48,13.94977602]
[1740108465116,0.03647881,174.52,174.49,0.03628461]
[1740108467323,0.03647881,174.52,174.49,5.76538461]
[1740108467721,0.03647881,174.52,174.49,0.03628461]
[1740108467922,5.76457881,174.52,174.49,0.03628461]
[1740108468326,15.95847602,174.51,174.49,0.03628461]
[1740108468527,10.22987602,174.51,174.49,0.03628461]
[1740108468922,10.22987602,174.51,174.42,3.5623]
[1740108469122,10.22987602,174.48,174.42,13.79217602]
[1740108469524,15.95957602,174.48,174.42,19.52337602]
[1740108469727,10.22987602,174.48,174.42,13.79217602]
[1740108470328,0.04116166,174.47,174.43,0.03690566]
[1740108470528,0.04116166,174.47,174.44,5.7307]
[1740108470731,0.04116166,174.47,174.43,0.03690566]
[1740108471227,0.04116166,174.47,174.43,5.76790566]
[1740108474029,0.04116166,174.47,174.43,0.03690566]
[1740108474421,0.04116166,174.47,174.43,5.76780566]
[1740108474827,0.04116166,174.47,174.43,0.03690566]
[1740108475532,0.04116166,174.47,174.44,10.22987602]
[1740108475833,0.04116166,174.47,174.46,5.7301]
[1740108476829,0.04116166,174.47,174.43,0.03690566]
[1740108477029,10.22987602,174.46,174.43,0.03690566]
[1740108477638,10.22987602,174.46,174.43,5.76770566]
[1740108477928,0.04116166,174.47,174.43,0.03690566]
[1740108478139,10.22987602,174.46,174.43,0.03690566]
[1740108478737,10.22987602,174.46,174.43,5.76780566]
[1740108479133,0.04116166,174.47,174.43,0.03690566]
[1740108479837,0.04116166,174.47,174.46,5.7301]
[1740108481241,0.04116166,174.47,174.43,0.03690566]
[1740108481442,0.04116166,174.47,174.44,5.7305]
[1740108481638,0.04116166,174.47,174.43,0.03690566]
[1740108482140,0.04116166,174.47,174.44,5.7305]
[1740108483345,0.04116166,174.47,174.43,5.76790566]
[1740108483843,0.04116166,174.47,174.43,0.03690566]
[1740108484046,10.22987602,174.44,174.43,0.03690566]
[1740108486543,10.22987602,174.44,174.37,10.22987602]
[1740108486744,10.22987602,174.41,174.35,12.07657602]
[1740108487551,5.7323,174.4,174.35,12.07657602]
[1740108487748,5.77482883,174.4,174.36,0.03669144]
[1740108488247,5.7324,174.39,174.36,0.03669144]
[1740108489147,10.22987602,174.39,174.36,0.03669144]
[1740108489351,5.733,174.37,174.36,0.03669144]
[1740108489547,10.22987602,174.37,174.36,0.03669144]
[1740108489746,10.22987602,174.39,174.36,0.03669144]
[1740108490749,0.04252883,174.4,174.36,0.03669144]
[1740108492045,0.04252883,174.4,174.37,10.22987602]
[1740108492652,10.22987602,174.39,174.36,0.03669144]
[1740108493249,0.04252883,174.4,174.36,0.03669144]
[1740108493651,5.7327,174.39,174.36,0.03669144]
[1740108493851,0.04252883,174.4,174.36,0.03669144]
[1740108494352,5.77482883,174.4,174.36,0.03669144]
[1740108494653,0.04252883,174.4,174.36,0.03669144]
[1740108494853,15.96257602,174.39,174.36,0.03669144]
[1740108495255,10.22987602,174.39,174.36,0.03669144]
[1740108496256,15.96247602,174.39,174.36,0.03669144]
[1740108497056,10.22987602,174.39,174.36,0.03669144]
[1740108497353,5.7328,174.38,174.36,0.03669144]
[1740108498159,10.22987602,174.39,174.36,0.03669144]
[1740108498459,5.733,174.37,174.36,0.03669144]
[1740108499252,15.96287602,174.37,174.36,0.03669144]
[1740108501461,10.22987602,174.37,174.36,0.03669144]
[1740108502663,0.04252883,174.4,174.36,0.03669144]
[1740108504363,0.04252883,174.4,174.36,5.76999144]
[1740108505155,0.04252883,174.4,174.36,0.03669144]
[1740108505768,0.04252883,174.4,174.36,5.76989144]
[1740108505967,0.04252883,174.4,174.36,0.03669144]
[1740108508067,5.77472883,174.4,174.36,0.03669144]
[1740108508665,10.22987602,174.38,174.36,0.03669144]
[1740108509568,5.733,174.37,174.36,0.03669144]
[1740108511967,5.733,174.37,174.36,9.144e-05]
[1740108515068,5.7351,174.31,174.28,10.22987602]
[1740108515671,5.7349,174.32,174.28,10.22987602]
[1740108515970,10.22987602,174.33,174.28,10.22987602]
[1740108516173,0.04373153,174.32,174.28,10.26664618]
[1740108516473,0.04373153,174.32,174.28,10.22987602]
[1740108516674,0.04373153,174.32,174.28,10.27044706]
[1740108516967,0.04373153,174.32,174.3,5.7351]
[1740108517172,193.0,174.39,174.3,10.22987602]
[1740108517173,10.22987602,174.37,174.3,10.22987602]
[1740108517373,10.22987602,174.37,174.32,10.22987602]
[1740108517563,10.22987602,174.37,174.32,15.96447602]
[1740108518475,0.03829057,174.36,174.33,0.04391869]
[1740108520177,10.22987602,174.35,174.33,0.04391869]
[1740108520677,5.734,174.34,174.33,0.04391869]
[1740108521269,5.7357,174.3,174.26,5.3885]
[1740108521574,15.96557602,174.3,174.26,3.6723]
[1740108522476,16.00590688,174.3,174.26,3.71537231]
[1740108523178,10.27020688,174.3,174.26,3.71537231]
[1740108523879,16.00580688,174.3,174.26,3.71537231]
[1740108524982,5.7358,174.29,174.26,3.71537231]
[1740108527783,5.7363,174.27,174.26,0.04307231]
[1740108532281,10.22987602,174.28,174.26,0.04307231]
[1740108532487,15.96597602,174.28,174.26,0.04307231]
[1740108533586,5.7363,174.27,174.26,7.231e-05]
[1740108534285,5.7378,174.23,174.19,2.26693393]
[1740108534483,10.22987602,174.22,174.19,2.26693393]
[1740108535482,10.26609522,174.22,174.19,2.30983662]
[1740108535688,0.0362192,174.22,174.19,2.30983662]
[1740108535887,10.22987602,174.24,174.19,2.30983662]
[1740108536087,10.22987602,174.24,174.2,1.8585]
[1740108537094,0.04053139,174.24,174.2,12.08837602]
[1740108537296,0.04053139,174.24,174.21,1.7606]
[1740108538199,0.04053139,174.24,174.22,5.7379]
[1740108538599,0.04053139,174.24,174.21,1.7606]
[1740108539299,5.7379,174.23,174.2,1.8585]
[1740108541699,10.27040741,174.24,174.2,1.8585]
[1740108541896,16.00790741,174.24,174.2,1.8585]
[1740108543599,5.7381,174.22,174.2,1.8585]
[1740108543800,10.22987602,174.22,174.19,2.30983662]
[1740108544198,15.96807602,174.22,174.19,2.30983662]
[1740108546902,10.22987602,174.22,174.19,2.30983662]
[1740108547099,10.27040741,174.24,174.19,2.30983662]
[1740108547805,0.04053139,174.24,174.2,10.22987602]
[1740108549100,0.04053139,174.24,174.21,5.7382]
[1740108550696,0.04053139,174.24,174.2,10.22987602]
[1740108551203,10.27040741,174.24,174.19,2.30983662]
[1740108551503,15.96787602,174.22,174.19,2.30983662]
[1740108552504,5.7383,174.21,174.19,2.30983662]
[1740108553204,5.7386,174.2,174.19,2.30983662]
[1740108553400,15.96847602,174.2,174.19,2.30983662]
[1740108554005,5.7401,174.16,174.12,10.22987602]
[1740108554702,15.96947602,174.17,174.12,10.22987602]
[1740108554903,0.0425003,174.16,174.13,0.03670727]
[1740108555706,0.0425003,174.16,174.13,5.77760727]
[1740108556096,10.22987602,174.19,174.13,5.77760727]
[1740108556097,10.22987602,174.19,174.14,3.5945]
[1740108556398,13.2386,174.21,174.14,3.5945]
[1740108556399,7.5,174.21,174.16,10.22987602]
[1740108556608,10.22987602,174.23,174.18,10.22987602]
[1740108557297,0.03800764,174.22,174.19,0.04115892]
[1740108559000,5.77630764,174.22,174.19,0.04115892]
[1740108561108,0.03800764,174.22,174.19,0.04115892]
[1740108565009,5.77620764,174.22,174.19,0.04115892]
[1740108565909,5.7383,174.21,174.19,0.04115892]
[1740108567407,5.77620764,174.22,174.19,0.04115892]
[1740108569709,5.7384,174.21,174.19,0.04115892]
[1740108570104,0.03800764,174.22,174.19,0.04115892]
[1740108570310,5.7383,174.21,174.19,0.04115892]
[1740108570709,5.7386,174.2,174.19,0.04115892]
[1740108571913,0.03800764,174.22,174.19,0.04115892]
[1740108572115,5.7384,174.21,174.19,0.04115892]
[1740108572512,0.03800764,174.22,174.19,0.04115892]
[1740108572714,5.77600764,174.22,174.19,0.04115892]
[1740108577715,0.03800764,174.22,174.19,0.04115892]
[1740108580217,0.03800764,174.22,174.21,5.7383]
[1740108581414,10.24869306,174.26,174.21,10.24869306]
[1740108581614,15.98479306,174.28,174.21,10.24869306]
[1740108582522,10.24869306,174.28,174.21,10.24869306]
[1740108582721,0.0425589,174.26,174.23,0.04081969]
[1740108583516,5.7793589,174.26,174.23,0.04081969]
[1740108587430,0.0425589,174.26,174.23,0.04081969]
[1740108590031,0.0425589,174.26,174.24,5.737]
[1740108591736,0.0425589,174.26,174.23,0.04081969]
[1740108592440,0.0425589,174.26,174.24,5.737]
[1740108594432,0.0425589,174.26,174.23,0.04081969]
[1740108594734,0.0425589,174.26,174.24,5.7371]
[1740108595034,0.0425589,174.26,174.25,5.737]
[1740108595732,0.0425589,174.26,174.23,0.04081969]
[1740108595928,10.24869306,174.24,174.23,0.04081969]
[1740108597039,10.24869306,174.24,174.15,3.5619]
[1740108597234,10.24869306,174.18,174.15,3.5619]
[1740108597940,10.24869306,174.18,174.16,5.7399]
[1740108598139,10.2850142,174.18,174.16,5.7399]
[1740108598532,0.03632114,174.18,174.17,5.7396]
[1740108598937,17.74869306,174.24,174.18,10.24869306]
[1740108599239,10.24869306,174.22,174.16,10.24869306]
[1740108599941,0.04134127,174.21,174.18,10.24869306]
[1740108600135,0.04134127,174.21,174.19,5.7389]
[1740108600335,0.04134127,174.21,174.18,10.24869306]
[1740108600944,0.04134127,174.21,174.2,5.7386]
[1740108601337,0.04134127,174.21,174.18,10.24869306]
[1740108601537,0.04134127,174.21,174.17,0.0439245]
[1740108601538,10.24869306,174.2,174.17,0.0439245]
[1740108602434,0.04134127,174.21,174.17,0.0439245]
[1740108602635,0.04134127,174.21,174.17,10.29261756]
[1740108603240,5.77994127,174.21,174.17,10.29261756]
[1740108603843,0.04134127,174.21,174.17,10.29261756]
[1740108604446,5.77994127,174.21,174.17,10.29261756]
[1740108604740,10.24869306,174.2,174.17,0.0439245]
[1740108605047,15.98799306,174.18,174.17,0.0439245]
[1740108605643,15.98799306,174.18,174.17,2.45e-05]
[1740108605945,10.24869306,174.18,174.09,10.24869306]
[1740108606137,15.98999306,174.13,174.07,13.84319306]
[1740108606336,10.24869306,174.13,174.07,13.84319306]
[1740108606542,15.98989306,174.13,174.07,13.84319306]
[1740108607046,10.24869306,174.13,174.07,19.58589306]
[1740108607347,0.03609904,174.12,174.08,0.04298019]
[1740108607748,0.03609904,174.12,174.09,10.24869306]
[1740108608550,0.03609904,174.12,174.09,5.7422]
[1740108608945,0.03609904,174.12,174.08,0.04298019]
[1740108609151,16.03238509,174.18,174.08,0.04298019]
[1740108609651,7.54,174.2,174.08,0.04298019]
[1740108609844,7.54,174.2,174.07,19.62688509]
[1740108610049,5.739,174.19,174.07,19.62688509]
[1740108610447,0.04195955,174.15,174.11,0.04064781]
[1740108611651,0.04195955,174.15,174.13,5.7409]
[1740108613145,0.04195955,174.15,174.11,0.04064781]
[1740108613347,0.04195955,174.15,174.14,5.7406]
[1740108615153,0.04195955,174.15,174.12,1.7869]
[1740108615652,0.04195955,174.15,174.12,7.5279]
[1740108616553,0.04195955,174.15,174.13,5.7409]
[1740108616758,0.04195955,174.15,174.12,1.7869]
[1740108617255,0.04195955,174.15,174.13,5.7407]
[1740108617454,0.04195955,174.15,174.12,1.7869]
[1740108617653,16.07434464,174.15,174.11,0.04064781]
[1740108618058,5.7413,174.13,174.11,0.04064781]
[1740108618251,16.07434464,174.15,174.11,0.04064781]
[1740108620157,21.81474464,174.15,174.11,0.04064781]
[1740108620547,16.07434464,174.15,174.11,0.04064781]
[1740108620946,16.07434464,174.15,174.12,5.7412]
[1740108623558,16.07434464,174.15,174.11,0.04064781]
[1740108624060,5.741,174.13,174.11,0.04064781]
[1740108624260,16.07434464,174.15,174.11,0.04064781]
[1740108624960,5.7413,174.12,174.11,0.04064781]
[1740108628067,16.03238509,174.12,174.03,5.2876]
[1740108628366,5.742,174.1,174.03,5.2876]
[1740108629070,5.742,174.1,174.04,5.7437]
[1740108629280,0.03800864,174.08,174.05,0.03916451]
[1740108630270,0.03800864,174.08,174.05,5.78256451]
[1740108630770,0.03800864,174.08,174.05,0.03916451]
[1740108631870,0.03800864,174.08,174.05,5.78256451]
[1740108632372,0.03800864,174.08,174.05,0.03916451]
[1740108632566,0.03800864,174.08,174.07,5.7429]
[1740108641678,0.03800864,174.08,174.05,0.03916451]
[1740108642279,0.03800864,174.08,174.05,1.79536451]
[1740108642779,0.03800864,174.08,174.07,5.7429]
[1740108643980,0.03800864,174.08,174.05,1.79536451]
[1740108644179,0.03800864,174.08,174.06,5.743]
[1740108644382,0.03800864,174.08,174.05,0.03916451]
[1740108644681,10.30525702,174.08,174.05,0.03916451]
[1740108644882,10.26724838,174.06,174.05,0.03916451]
[1740108646271,10.30525702,174.08,174.05,0.03916451]
[1740108646875,10.30525702,174.08,174.06,5.743]
[1740108647783,0.03800864,174.08,174.07,5.7429]
[1740108650878,0.03800864,174.08,174.06,5.7432]
[1740108651088,0.03800864,174.08,174.05,0.03916451]
[1740108651785,0.03800864,174.08,174.05,5.78266451]
[1740108652286,0.03800864,174.08,174.06,5.743]
[1740108653988,0.03800864,174.08,174.05,0.03916451]
[1740108654184,0.03800864,174.08,174.07,5.7429]
[1740108655287,0.03800864,174.08,174.06,5.7432]
[1740108655691,0.03800864,174.08,174.05,0.03916451]
[1740108657492,0.03800864,174.08,174.06,5.743]
[1740108657793,0.03800864,174.08,174.05,0.03916451]
[1740108658181,0.03800864,174.08,174.06,5.743]
[1740108660186,0.03800864,174.08,174.06,5.7433]
[1740108661890,0.03800864,174.08,174.06,5.743]
[1740108662191,0.03800864,174.08,174.05,0.03916451]
[1740108662690,0.03800864,174.08,174.06,5.7433]
[1740108665098,10.30525702,174.08,174.05,0.03916451]
[1740108666499,16.04785702,174.08,174.05,0.03916451]
[1740108666701,10.26724838,174.06,174.05,0.03916451]
[1740108670999,16.01054838,174.06,174.05,0.03916451]
[1740108672898,10.26724838,174.07,174.05,0.03916451]
[1740108676398,0.03800864,174.08,174.05,0.03916451]
[1740108677303,0.03800864,174.08,174.05,5.78256451]
[1740108678505,0.03800864,174.08,174.05,0.03916451]
[1740108679202,0.03800864,174.08,174.05,5.78256451]
[1740108679899,0.03800864,174.08,174.06,5.7432]
[1740108680404,0.03800864,174.08,174.05,0.03916451]
[1740108680705,10.26724838,174.07,174.05,0.03916451]
[1740108682802,16.01024838,174.07,174.05,0.03916451]
[1740108683003,0.03800864,174.08,174.05,0.03916451]
[1740108684902,0.03800864,174.08,174.06,5.7433]
[1740108687006,10.26724838,174.11,174.07,5.7429]
[1740108687706,10.26724838,174.12,174.05,10.30641289]
[1740108687906,10.26724838,174.12,174.05,10.26724838]
[1740108688206,0.03625032,174.1,174.07,0.03946231]
[1740108688902,0.61559627,174.17,174.09,10.26724838]
[1740108689108,10.88284465,174.17,174.11,10.26724838]
[1740108689606,5.7402,174.16,174.12,5.7412]
[1740108690110,5.78008628,174.16,174.12,0.0428109]
[1740108693701,0.03988628,174.16,174.12,5.7840109]
[1740108693901,0.03988628,174.16,174.13,10.26724838]
[1740108694103,0.03988628,174.16,174.13,13.82644838]
[1740108694509,0.03988628,174.16,174.13,3.5592]
[1740108695103,10.26724838,174.15,174.12,0.0428109]
[1740108695905,0.03988628,174.16,174.12,0.0428109]
[1740108696710,5.7404,174.15,174.12,0.0428109]
[1740108697708,5.77988628,174.16,174.12,0.0428109]
[1740108698314,5.7403,174.15,174.12,0.0428109]
[1740108698612,0.03988628,174.16,174.12,0.0428109]
[1740108698808,5.77988628,174.16,174.12,5.7840109]
[1740108699818,0.03988628,174.16,174.12,5.7840109]
[1740108700019,0.03988628,174.16,174.15,5.7403]
[1740108700914,0.03988628,174.16,174.14,5.7404]
[1740108701220,0.03988628,174.16,174.13,10.26724838]
[1740108702820,0.03988628,174.16,174.13,16.00794838]
[1740108703017,0.03988628,174.16,174.13,10.26724838]
[1740108705021,0.03988628,174.16,174.13,16.00814838]
[1740108705821,0.03988628,174.16,174.14,5.7406]
[1740108709731,0.03988628,174.16,174.13,10.26724838]
[1740108709927,0.03988628,174.16,174.15,5.7403]
[1740108710128,0.03988628,174.16,174.13,10.26724838]
[1740108710724,0.03988628,174.16,174.12,0.0428109]
[1740108710725,10.26724838,174.15,174.12,0.0428109]
[1740108710931,10.26724838,174.13,174.12,0.0428109]
[1740108711229,16.00814838,174.13,174.12,0.0428109]